bitfinex/quotes_BTCUSD_20250614
["timestamp","ask_amount","ask_price","bid_price","bid_amount"]
[1749876549843,0.06197699,105420.0,105410.0,1.12438313]
[1749876550045,0.06197699,105420.0,105410.0,1.12438311]
[1749876550244,0.06197699,105420.0,105410.0,1.12438313]
[1749876550493,0.06197699,105420.0,105410.0,1.10664024]
[1749876550697,0.06197699,105420.0,105410.0,1.12438314]
[1749876550905,0.06197699,105420.0,105410.0,1.10664025]
[1749876551023,0.06197699,105420.0,105410.0,1.12438314]
[1749876551429,0.06197699,105420.0,105410.0,1.14502391]
[1749876551733,0.06197699,105420.0,105410.0,0.55824509]
[1749876553041,0.06197699,105420.0,105410.0,0.55824511]
[1749876553592,0.06197699,105420.0,105410.0,0.55824512]
[1749876553796,0.06197699,105420.0,105410.0,0.55824513]
[1749876553992,0.03147699,105420.0,105410.0,0.55824608]
[1749876554202,0.03147699,105420.0,105410.0,1.04887943]
[1749876554383,0.03147699,105420.0,105410.0,1.02447821]
[1749876554596,0.03147699,105420.0,105410.0,1.14503003]
[1749876554797,0.03147699,105420.0,105410.0,1.13837478]
[1749876555000,0.03147699,105420.0,105410.0,1.14503003]
[1749876555194,0.03147699,105420.0,105410.0,1.12728269]
[1749876555549,0.03147699,105420.0,105410.0,1.14503006]
[1749876555760,0.03147699,105420.0,105410.0,1.12728269]
[1749876555968,0.00147699,105420.0,105410.0,1.12728269]
[1749876556200,0.00147699,105420.0,105410.0,1.14503007]
[1749876556621,0.00147699,105420.0,105410.0,1.14503008]
[1749876556829,0.00147699,105420.0,105410.0,1.14503009]
[1749876557038,0.00147699,105420.0,105410.0,1.10989481]
[1749876557244,0.00147699,105420.0,105410.0,1.11655008]
[1749876557462,0.00147699,105420.0,105410.0,1.09880269]
[1749876557632,0.00147699,105420.0,105410.0,1.09214742]
[1749876557843,0.00147699,105420.0,105410.0,1.09880268]
[1749876558046,0.00147699,105420.0,105410.0,1.1098948]
[1749876558246,0.00147699,105420.0,105410.0,1.09880268]
[1749876558449,0.00147699,105420.0,105410.0,1.09880267]
[1749876558650,0.01767699,105420.0,105410.0,1.11655]
[1749876558849,0.01767699,105420.0,105410.0,1.09214742]
[1749876559220,0.01767699,105420.0,105410.0,1.10989475]
[1749876559417,0.01767699,105420.0,105410.0,1.09214742]
[1749876559705,0.01767699,105420.0,105410.0,1.09880267]
[1749876559890,0.01767699,105420.0,105410.0,1.09214742]
[1749876560097,0.01767699,105420.0,105410.0,1.11654994]
[1749876560512,0.01767699,105420.0,105410.0,1.11655112]
[1749876560722,0.01767699,105420.0,105410.0,1.09880297]
[1749876560942,0.01767699,105420.0,105410.0,1.11655121]
[1749876561152,0.01767699,105420.0,105410.0,1.09880295]
[1749876561352,0.91468233,105430.0,105420.0,0.21817382]
[1749876561572,0.91468233,105430.0,105420.0,0.66461908]
[1749876561786,0.905198,105430.0,105420.0,0.664619]
[1749876561990,0.905198,105430.0,105420.0,0.65796352]
[1749876562234,0.905198,105430.0,105420.0,0.66461948]
[1749876562441,0.905198,105430.0,105420.0,0.64687151]
[1749876562636,0.905198,105430.0,105420.0,0.51138073]
[1749876562840,0.9241672,105430.0,105420.0,0.47695233]
[1749876563036,0.91468251,105430.0,105420.0,0.47029636]
[1749876563239,0.92416711,105430.0,105420.0,0.49470321]
[1749876563425,0.91468251,105430.0,105420.0,0.47129636]
[1749876563627,0.91468251,105430.0,105420.0,0.57273122]
[1749876563945,0.91468251,105430.0,105420.0,0.57273121]
[1749876564465,0.92978233,105430.0,105420.0,0.57273121]
[1749876564883,0.92978233,105430.0,105420.0,0.56607465]
[1749876565093,0.92978233,105430.0,105420.0,0.57273121]
[1749876565292,0.92978233,105430.0,105420.0,0.55498038]
[1749876565526,0.92978233,105430.0,105420.0,0.57273141]
[1749876565724,0.92978233,105430.0,105420.0,0.48904727]
[1749876565933,0.92978233,105430.0,105420.0,0.47795295]
[1749876566168,0.92978233,105430.0,105420.0,0.48904731]
[1749876566696,0.92978233,105430.0,105420.0,0.49570391]
[1749876567668,0.92978233,105430.0,105420.0,0.47129636]
[1749876567930,0.92978233,105430.0,105420.0,0.49570391]
[1749876568398,0.92978233,105430.0,105420.0,0.47795299]
[1749876568628,0.92978233,105430.0,105420.0,0.49570401]
[1749876568864,0.92978233,105430.0,105420.0,0.49570391]
[1749876569599,0.92978233,105430.0,105420.0,0.47795296]
[1749876569857,0.92978233,105430.0,105420.0,0.49570391]
[1749876570092,0.92978233,105430.0,105420.0,0.47795296]
[1749876570345,0.92978233,105430.0,105420.0,0.49570391]
[1749876570852,0.92978233,105430.0,105420.0,0.47795296]
[1749876571366,0.92978233,105430.0,105420.0,0.49570391]
[1749876571610,0.92978233,105430.0,105420.0,0.4957039]
[1749876572358,0.92978233,105430.0,105420.0,0.47129635]
[1749876572614,0.93926684,105430.0,105420.0,0.4890475]
[1749876572846,0.93926684,105430.0,105420.0,0.48904751]
[1749876573065,0.93926684,105430.0,105420.0,0.49570419]
[1749876574128,0.94875153,105430.0,105420.0,0.48908751]
[1749876574339,0.94875144,105430.0,105420.0,0.49573213]
[1749876574582,0.94875144,105430.0,105420.0,0.48907874]
[1749876574855,0.94875144,105430.0,105420.0,0.49573213]
[1749876575104,0.93926684,105430.0,105420.0,0.49573213]
[1749876575306,0.93926684,105430.0,105420.0,0.4890788]
[1749876575516,0.93926684,105430.0,105420.0,0.49573222]
[1749876575772,1.11948165,105430.0,105420.0,0.32352146]
[1749876576013,0.93926756,105430.0,105420.0,0.50525776]
[1749876576222,0.94875252,105430.0,105420.0,0.50525805]
[1749876576427,0.94875252,105430.0,105420.0,0.51474344]
[1749876576632,0.93926756,105430.0,105420.0,0.5147429]
[1749876576836,0.93926756,105430.0,105420.0,0.51473929]
[1749876577037,0.93926756,105430.0,105420.0,0.49699937]
[1749876577190,0.93926756,105430.0,105420.0,0.50808682]
[1749876577394,0.93926756,105430.0,105420.0,0.5147393]
[1749876577605,0.93926756,105430.0,105420.0,0.49699937]
[1749876577809,0.93926756,105430.0,105420.0,0.5147393]
[1749876577968,0.93926756,105430.0,105420.0,0.4903469]
[1749876578179,0.93926756,105430.0,105420.0,0.5147393]
[1749876578383,0.93926756,105430.0,105420.0,0.51473929]
[1749876578828,0.93926756,105430.0,105420.0,0.49699937]
[1749876579248,0.93926756,105430.0,105420.0,0.3614593]
[1749876579448,0.92978278,105430.0,105420.0,0.50808682]
[1749876579662,0.93926756,105430.0,105420.0,0.51473928]
[1749876579866,0.93926756,105430.0,105420.0,0.51473929]
[1749876580308,0.93926756,105430.0,105420.0,0.49034689]
[1749876580509,0.93926756,105430.0,105420.0,0.51473929]
[1749876580726,0.94875243,105430.0,105420.0,0.51473929]
[1749876580933,0.94875243,105430.0,105420.0,0.5147393]
[1749876581160,0.94875243,105430.0,105420.0,0.49699936]
[1749876581370,0.94875243,105430.0,105420.0,0.49699937]
[1749876581572,1.11948264,105430.0,105420.0,0.13380079]
[1749876581774,1.60062792,105430.0,105420.0,0.28038947]
[1749876581979,1.60062792,105430.0,105420.0,0.47133697]
[1749876582176,1.60062792,105430.0,105420.0,0.48907969]
[1749876582417,1.59114332,105430.0,105420.0,0.01033431]
[1749876582607,1.59114332,105430.0,105420.0,0.02808241]
[1749876582837,1.59114332,105430.0,105420.0,0.02808322]
[1749876583191,1.59114332,105430.0,105420.0,0.02808398]
[1749876583415,1.59114332,105430.0,105420.0,0.00368076]
[1749876583635,1.59114332,105430.0,105420.0,0.00733618]
[1749876584013,1.60014332,105430.0,105420.0,0.01942856]
[1749876584241,1.60014332,105430.0,105420.0,0.02608397]
[1749876584448,1.60014332,105430.0,105420.0,0.00833618]
[1749876584649,1.60714332,105430.0,105420.0,0.00833618]
[1749876585327,1.60714332,105430.0,105420.0,0.01942856]
[1749876585572,1.60714332,105430.0,105420.0,0.00833618]
[1749876585792,1.60714332,105430.0,105420.0,0.00168076]
[1749876586022,1.60714332,105430.0,105420.0,0.02608398]
[1749876586263,1.60714332,105430.0,105420.0,0.00833618]
[1749876586478,1.56794332,105430.0,105420.0,0.02608398]
[1749876586718,1.76050332,105430.0,105420.0,0.02608398]
[1749876586936,1.76050332,105430.0,105420.0,0.01942856]
[1749876587157,1.76050332,105430.0,105420.0,0.02608398]
[1749876587832,1.76050332,105430.0,105420.0,0.02608397]
[1749876588059,1.76050332,105430.0,105420.0,0.02608398]
[1749876588279,1.76050332,105430.0,105420.0,0.00833619]
[1749876588513,1.76050332,105430.0,105420.0,0.01942859]
[1749876588727,1.76050332,105430.0,105420.0,0.02608398]
[1749876589163,1.76050332,105430.0,105420.0,0.00168076]
[1749876589387,1.76050332,105430.0,105420.0,0.01942856]
[1749876589599,1.76050332,105430.0,105420.0,0.02608398]
[1749876589811,1.76046332,105430.0,105420.0,0.02608307]
[1749876590090,1.76046332,105430.0,105420.0,0.0194279]
[1749876590332,1.76046332,105430.0,105420.0,0.02608279]
[1749876590558,1.76046332,105430.0,105420.0,0.02609988]
[1749876590781,1.76046332,105430.0,105420.0,0.0261011]
[1749876591003,1.76046332,105430.0,105420.0,0.02610104]
[1749876591676,1.76046332,105430.0,105420.0,0.00834083]
[1749876591906,1.76046332,105430.0,105420.0,0.02610107]
[1749876592150,1.76042332,105430.0,105420.0,0.02610113]
[1749876592357,1.56794332,105430.0,105420.0,0.01944099]
[1749876592563,1.76042332,105430.0,105420.0,0.0260229]
[1749876592797,1.76042332,105430.0,105420.0,0.01938414]
[1749876593012,1.76042332,105430.0,105420.0,0.00168076]
[1749876593478,1.76042332,105430.0,105420.0,0.01938414]
[1749876593900,1.76042332,105430.0,105420.0,0.00168076]
[1749876594124,1.76042332,105430.0,105420.0,0.00831954]
[1749876594510,1.76042332,105430.0,105420.0,0.02602296]
[1749876594883,1.76042332,105430.0,105420.0,0.02602297]
[1749876595315,1.76042332,105430.0,105420.0,0.00168076]
[1749876595505,1.76042332,105430.0,105420.0,0.00831955]
[1749876595910,1.76042332,105430.0,105420.0,0.00168076]
[1749876596079,1.76042332,105430.0,105420.0,0.00831955]
[1749876596481,1.76042332,105430.0,105420.0,0.02602301]
[1749876596715,1.76042332,105430.0,105420.0,0.02602303]
[1749876596917,1.76042332,105430.0,105420.0,0.01938423]
[1749876597161,1.76042332,105430.0,105420.0,0.02602303]
[1749876597331,1.76042332,105430.0,105420.0,0.02602304]
[1749876597629,1.76042332,105430.0,105420.0,0.02602305]
[1749876597835,1.76042332,105430.0,105420.0,0.00831956]
[1749876598057,1.76042332,105430.0,105420.0,0.02602304]
[1749876599311,1.76042332,105430.0,105420.0,0.02602306]
[1749876600145,1.76042332,105430.0,105420.0,0.01938421]
[1749876600664,1.76042332,105430.0,105420.0,0.00831955]
[1749876600889,1.76042332,105430.0,105420.0,0.02602301]
[1749876601098,1.76042332,105430.0,105420.0,0.00831955]
[1749876601301,1.76042332,105430.0,105420.0,0.02602301]
[1749876601730,1.76042332,105430.0,105420.0,0.00168076]
[1749876601940,1.76042332,105430.0,105420.0,0.01938422]
[1749876602142,1.76042332,105430.0,105420.0,0.00168076]
[1749876602766,1.76042332,105430.0,105420.0,0.01938422]
[1749876602976,1.76042332,105430.0,105420.0,0.02602301]
[1749876603588,1.76042332,105430.0,105420.0,0.00831955]
[1749876603799,1.76042332,105430.0,105420.0,0.02602301]
[1749876604016,1.76042332,105430.0,105420.0,0.01938424]
[1749876604236,1.98042332,105430.0,105420.0,0.01938767]
[1749876604447,1.98042332,105430.0,105420.0,0.01944485]
[1749876604659,1.98042332,105430.0,105420.0,0.01944518]
[1749876604868,1.98042332,105430.0,105420.0,0.02610712]
[1749876605317,1.98042332,105430.0,105420.0,0.02610718]
[1749876605532,1.98042332,105430.0,105420.0,0.02610724]
[1749876605940,1.98042332,105430.0,105420.0,0.01944551]
[1749876606355,1.98042332,105430.0,105420.0,0.02610736]
[1749876606592,1.98042332,105430.0,105420.0,0.00168076]
[1749876606815,1.98042332,105430.0,105420.0,0.00833145]
[1749876607022,1.98042332,105430.0,105420.0,0.01941594]
[1749876607238,1.98042332,105430.0,105420.0,0.00833145]
[1749876607458,1.98042332,105430.0,105420.0,0.01941594]
[1749876607670,1.98042332,105430.0,105420.0,0.02606663]
[1749876608127,1.98042332,105430.0,105420.0,0.00168076]
[1749876608341,1.98042332,105430.0,105420.0,0.02606664]
[1749876608552,1.98042332,105430.0,105420.0,0.00168076]
[1749876608766,1.98042332,105430.0,105420.0,0.02606664]
[1749876609212,1.98042332,105430.0,105420.0,0.00833145]
[1749876609432,1.98042332,105430.0,105420.0,0.01941595]
[1749876609646,1.98042332,105430.0,105420.0,0.02606664]
[1749876609824,1.98042332,105430.0,105420.0,0.0260666]
[1749876610507,1.98042332,105430.0,105420.0,0.00833144]
[1749876610713,1.98042332,105430.0,105420.0,0.01941592]
[1749876610958,1.98042332,105430.0,105420.0,0.02606661]
[1749876611168,1.98042332,105430.0,105420.0,0.02606664]
[1749876611379,1.98042332,105430.0,105420.0,0.00833145]
[1749876611808,1.98042332,105430.0,105420.0,0.02606664]
[1749876612230,1.98042332,105430.0,105420.0,0.00168076]
[1749876612439,1.98042332,105430.0,105420.0,0.02606664]
[1749876612660,1.98042332,105430.0,105420.0,0.01941595]
[1749876612914,1.98042332,105430.0,105420.0,0.02606664]
[1749876613130,1.98042332,105430.0,105420.0,0.02606663]
[1749876613569,1.98042332,105430.0,105420.0,0.0260666]
[1749876614482,1.98042332,105430.0,105420.0,0.01941592]
[1749876615306,1.98042332,105430.0,105420.0,0.00168076]
[1749876616172,1.98042332,105430.0,105420.0,0.00833145]
[1749876616378,1.98042332,105430.0,105420.0,0.02607207]
[1749876617257,2.25366332,105430.0,105420.0,0.0194291]
[1749876617466,2.25366332,105430.0,105420.0,0.02608472]
[1749876617676,2.25366332,105430.0,105420.0,0.02608471]
[1749876617902,2.25366332,105430.0,105420.0,0.00833638]
[1749876618112,2.25366332,105430.0,105420.0,0.02608512]
[1749876618331,2.25366332,105430.0,105420.0,0.02608593]
[1749876618553,2.25366332,105430.0,105420.0,0.02608761]
[1749876618757,2.25366332,105430.0,105420.0,0.02608763]
[1749876619607,2.25366332,105430.0,105420.0,0.02608764]
[1749876620491,2.25366332,105430.0,105420.0,0.02608763]
[1749876620693,2.25366332,105430.0,105420.0,0.01943121]
[1749876620916,2.25366332,105430.0,105420.0,0.02608763]
[1749876621330,2.25366332,105430.0,105420.0,0.01943122]
[1749876621755,2.25366332,105430.0,105420.0,0.02608764]
[1749876621958,2.25366332,105430.0,105420.0,0.00168076]
[1749876622175,2.25366332,105430.0,105420.0,0.00833718]
[1749876622372,2.25366332,105430.0,105420.0,0.02609549]
[1749876622594,2.25366332,105430.0,105420.0,0.00834503]
[1749876622825,2.25366332,105430.0,105420.0,0.00168076]
[1749876623056,2.25366332,105430.0,105420.0,0.02611643]
[1749876623262,2.25366332,105430.0,105420.0,0.00168076]
[1749876623681,2.25366332,105430.0,105420.0,0.00834503]
[1749876623890,2.25366332,105430.0,105420.0,0.00834504]
[1749876624097,2.25366332,105430.0,105420.0,0.00168076]
[1749876624314,2.25366332,105430.0,105420.0,0.00834504]
[1749876624519,2.25366332,105430.0,105420.0,0.00168076]
[1749876624733,2.25366332,105430.0,105420.0,0.02611647]
[1749876624942,2.25366332,105430.0,105420.0,0.02611646]
[1749876625147,2.25366332,105430.0,105420.0,0.00834504]
[1749876625355,2.25366332,105430.0,105420.0,0.00168076]
[1749876625599,2.25366332,105430.0,105420.0,0.02611647]
[1749876625809,2.25366332,105430.0,105420.0,0.01945219]
[1749876626043,2.25366332,105430.0,105420.0,0.00834505]
[1749876626263,2.25366332,105430.0,105420.0,0.02611649]
[1749876626475,2.25366332,105430.0,105420.0,0.00834504]
[1749876626693,2.25366332,105430.0,105420.0,0.02611649]
[1749876626904,2.25366332,105430.0,105420.0,0.02611648]
[1749876627314,2.25366332,105430.0,105420.0,0.01945218]
[1749876627517,2.25366332,105430.0,105420.0,0.00834504]
[1749876627719,2.25366332,105430.0,105420.0,0.01945218]
[1749876627924,2.25366332,105430.0,105420.0,0.00834504]
[1749876628136,2.25366332,105430.0,105420.0,0.01945218]
[1749876628359,2.25366332,105430.0,105420.0,0.00168076]
[1749876628576,2.25366332,105430.0,105420.0,0.01944346]
[1749876628996,2.25366332,105430.0,105420.0,0.02610447]
[1749876629206,2.25366332,105430.0,105420.0,0.00168076]
[1749876629442,2.25366332,105430.0,105420.0,0.00834177]
[1749876629649,2.25366332,105430.0,105420.0,0.01944345]
[1749876629855,2.25366332,105430.0,105420.0,0.02610446]
[1749876630082,2.25366332,105430.0,105420.0,0.02610445]
[1749876630293,2.25366332,105430.0,105420.0,0.02610537]
[1749876630501,2.25366332,105430.0,105420.0,0.01944429]
[1749876630744,2.25366332,105430.0,105420.0,0.02610564]
[1749876630951,2.25366332,105430.0,105420.0,0.02610599]
[1749876631564,2.25126332,105430.0,105420.0,0.02610632]
[1749876631778,2.25126332,105430.0,105420.0,0.00834228]
[1749876631995,2.25126332,105430.0,105420.0,0.02610636]
[1749876632624,2.25126332,105430.0,105420.0,0.02610632]
[1749876632835,2.25126332,105430.0,105420.0,0.00834246]
[1749876632983,2.25126332,105430.0,105420.0,0.02610729]
[1749876633191,2.25126332,105430.0,105420.0,0.01944568]
[1749876633386,2.25126332,105430.0,105420.0,0.02610753]
[1749876633594,2.54750508,105430.0,105420.0,0.0083426]
[1749876633800,0.5487082,105410.0,105400.0,0.10691794]
[1749876633995,1.19257781,105410.0,105400.0,0.10739493]
[1749876634591,1.19257781,105410.0,105400.0,0.10802799]
[1749876635016,1.19257781,105410.0,105400.0,0.11002799]
[1749876635421,1.19257781,105410.0,105400.0,0.11102799]
[1749876637835,1.19257781,105410.0,105400.0,0.03541005]
[1749876638511,1.23177781,105410.0,105400.0,0.03541005]
[1749876641429,0.7411482,105410.0,105400.0,0.03541005]
[1749876641569,1.23177781,105410.0,105400.0,0.03541005]
[1749876645880,1.23177781,105410.0,105400.0,0.05316753]
[1749876646112,1.03933781,105410.0,105400.0,0.05316753]
[1749876646322,1.23177781,105410.0,105400.0,0.05316767]
[1749876646533,1.23177781,105410.0,105400.0,0.05317244]
[1749876647445,1.23177781,105410.0,105400.0,0.03541005]
[1749876647915,1.23177781,105410.0,105400.0,0.05317244]
[1749876648138,1.23177781,105410.0,105400.0,0.03541005]
[1749876648359,1.03933781,105410.0,105400.0,0.05317247]
[1749876648614,1.23177781,105410.0,105400.0,0.03541005]
[1749876648821,1.23177781,105410.0,105400.0,0.05317235]
[1749876649039,1.23177781,105410.0,105400.0,0.03541005]
[1749876649475,1.23177781,105410.0,105400.0,0.04489771]
[1749876649690,1.23177781,105410.0,105400.0,0.06242033]
[1749876650120,1.23177781,105410.0,105400.0,0.04465802]
[1749876650327,1.23177781,105410.0,105400.0,0.06242033]
[1749876651386,1.23177781,105410.0,105400.0,0.06242032]
[1749876652215,1.23177781,105410.0,105400.0,0.04465802]
[1749876652638,1.23177781,105410.0,105400.0,0.06242033]
[1749876652853,1.23177781,105410.0,105400.0,0.06242032]
[1749876654893,1.23177781,105410.0,105400.0,0.06242033]
[1749876655528,1.23177781,105410.0,105400.0,0.04465802]
[1749876655744,1.23177781,105410.0,105400.0,0.06242035]
[1749876656187,1.23177781,105410.0,105400.0,0.06242036]
[1749876656628,1.23177781,105410.0,105400.0,0.04465802]
[1749876657076,0.36845893,105410.0,105400.0,0.37688006]
[1749876657292,0.90777521,105410.0,105400.0,0.37688006]
[1749876657515,0.90777521,105410.0,105400.0,0.359115]
[1749876657945,0.90777521,105410.0,105400.0,0.37687826]
[1749876658152,0.90777521,105410.0,105400.0,0.37687822]
[1749876658560,0.90777521,105410.0,105400.0,0.37688851]
[1749876659232,0.90777521,105410.0,105400.0,0.359115]
[1749876659435,0.90777521,105410.0,105400.0,0.36578006]
[1749876659649,0.90777521,105410.0,105400.0,0.37688851]
[1749876659854,0.90777521,105410.0,105400.0,0.38355357]
[1749876660296,1.10699728,105410.0,105400.0,0.36578024]
[1749876660508,1.09751124,105410.0,105400.0,0.35629304]
[1749876660709,1.09751124,105410.0,105400.0,0.34962797]
[1749876660915,1.09751124,105410.0,105400.0,0.36740149]
[1749876661118,1.09751124,105410.0,105400.0,0.35629304]
[1749876661370,1.09751124,105410.0,105400.0,0.34962797]
[1749876661576,1.09751124,105410.0,105400.0,0.37406656]
[1749876661788,1.09751124,105410.0,105400.0,0.37406655]
[1749876662002,1.08802493,105410.0,105400.0,0.34014067]
[1749876662212,1.08802493,105410.0,105400.0,0.36740166]
[1749876662420,1.08802493,105410.0,105400.0,0.35629316]
[1749876662628,1.08802493,105410.0,105400.0,0.37406558]
[1749876662856,1.08802493,105410.0,105400.0,0.37406535]
[1749876663063,1.08802493,105410.0,105400.0,0.37406408]
[1749876663270,1.08802493,105410.0,105400.0,0.37406405]
[1749876663475,1.08802493,105410.0,105400.0,0.34962815]
[1749876663678,1.08802493,105410.0,105400.0,0.35629248]
[1749876664110,1.07853835,105410.0,105400.0,0.37406405]
[1749876664322,1.07853835,105410.0,105400.0,0.34962815]
[1749876664543,1.07853835,105410.0,105400.0,0.37406405]
[1749876664748,1.07853835,105410.0,105400.0,0.35629249]
[1749876664953,1.07853835,105410.0,105400.0,0.37406407]
[1749876665910,1.07853835,105410.0,105400.0,0.34962815]
[1749876666120,1.07853835,105410.0,105400.0,0.37406407]
[1749876666528,1.07853835,105410.0,105400.0,0.36739973]
[1749876666734,1.07853835,105410.0,105400.0,0.37406407]
[1749876667147,1.07853835,105410.0,105400.0,0.36739973]
[1749876667352,1.07853835,105410.0,105400.0,0.37406407]
[1749876667781,1.23177835,105410.0,105400.0,0.1340357]
[1749876667986,1.22229168,105410.0,105400.0,0.11788382]
[1749876668197,1.22229168,105410.0,105400.0,0.12454888]
[1749876668405,1.22229168,105410.0,105400.0,0.1245512]
[1749876668613,1.22229168,105410.0,105400.0,0.12455126]
[1749876669024,1.22229168,105410.0,105400.0,0.12455127]
[1749876669234,1.22229168,105410.0,105400.0,0.13955127]
[1749876669437,1.22229168,105410.0,105400.0,0.12455171]
[1749876669852,1.22229168,105410.0,105400.0,0.12455173]
[1749876670053,1.22229168,105410.0,105400.0,0.12455172]
[1749876670523,1.22229168,105410.0,105400.0,0.11788637]
[1749876670755,1.22229168,105410.0,105400.0,0.12455172]
[1749876670992,1.22229168,105410.0,105400.0,0.10677746]
[1749876671222,1.22229168,105410.0,105400.0,0.12455172]
[1749876671474,1.22229168,105410.0,105400.0,0.10677746]
[1749876671945,1.22229168,105410.0,105400.0,0.12455172]
[1749876672183,0.53927861,105380.0,105370.0,0.0159]
[1749876672411,0.53931644,105360.0,105350.0,0.04654]
[1749876672632,1.52057566,105360.0,105350.0,0.14278176]
[1749876672860,1.52057566,105360.0,105350.0,0.12628176]
[1749876673092,1.67397566,105360.0,105350.0,0.11038176]
[1749876673322,1.67397566,105360.0,105350.0,0.11077513]
[1749876673323,1.57464988,105360.0,105350.0,0.11077513]
[1749876673533,1.57464988,105360.0,105350.0,0.01453337]
[1749876674009,1.57464988,105360.0,105350.0,0.01458106]
[1749876674470,1.57464988,105360.0,105350.0,0.0234806]
[1749876674927,1.57464988,105360.0,105350.0,0.02348059]
[1749876675162,1.03371265,105360.0,105350.0,0.22281612]
[1749876675403,1.03471265,105360.0,105350.0,0.22281612]
[1749876675629,1.02622166,105360.0,105350.0,0.03297246]
[1749876675857,1.02622166,105360.0,105350.0,0.03297243]
[1749876676304,1.02572166,105360.0,105350.0,0.03297243]
[1749876676549,1.02572166,105360.0,105350.0,0.22281609]
[1749876676991,1.02572166,105360.0,105350.0,0.2381161]
[1749876677214,1.02572166,105360.0,105350.0,0.25710006]
[1749876677438,1.02572166,105360.0,105350.0,0.24760817]
[1749876677658,0.98652166,105360.0,105350.0,0.25709993]
[1749876677894,1.02572166,105360.0,105350.0,0.25710011]
[1749876678115,1.02572166,105360.0,105350.0,0.24820064]
[1749876678317,1.02572166,105360.0,105350.0,0.26659201]
[1749876679195,1.02572166,105360.0,105350.0,0.25769253]
[1749876679435,1.02572166,105360.0,105350.0,0.26659201]
[1749876679658,0.98652166,105360.0,105350.0,0.25710012]
[1749876680128,1.02580166,105360.0,105350.0,0.24820064]
[1749876680370,1.02580166,105360.0,105350.0,0.25710012]
[1749876680632,0.98652166,105360.0,105350.0,0.25710012]
[1749876680882,0.85545765,105360.0,105350.0,0.38762521]
[1749876681129,0.83648957,105360.0,105350.0,0.38762477]
[1749876681371,0.84598056,105360.0,105350.0,0.38762451]
[1749876681617,0.45720957,105360.0,105350.0,0.4518223]
[1749876681876,0.83648948,105360.0,105350.0,0.4518223]
[1749876682377,0.84598038,105360.0,105350.0,0.4607201]
[1749876682620,0.79720948,105360.0,105350.0,0.4518223]
[1749876682869,0.81750822,105360.0,105350.0,0.4518223]
[1749876684062,0.81550822,105360.0,105350.0,0.37872573]
[1749876684285,0.81550822,105360.0,105350.0,0.3975194]
[1749876684508,0.81550822,105360.0,105350.0,0.40419201]
[1749876684715,0.81550822,105360.0,105350.0,0.4041919]
[1749876684887,0.81550822,105360.0,105350.0,0.40419188]
[1749876685289,0.81550822,105360.0,105350.0,0.3975193]
[1749876685493,0.81550822,105360.0,105350.0,0.40514197]
[1749876685693,0.81550822,105360.0,105350.0,0.40500886]
[1749876685923,0.81550822,105360.0,105350.0,0.3873484]
[1749876686048,0.81550822,105360.0,105350.0,0.39838621]
[1749876686448,0.82499876,105360.0,105350.0,0.38072573]
[1749876686679,0.82499876,105360.0,105350.0,0.40500889]
[1749876686938,0.83448939,105360.0,105350.0,0.40500889]
[1749876687183,0.83448939,105360.0,105350.0,0.40505882]
[1749876687398,0.83448939,105360.0,105350.0,0.40519196]
[1749876687617,0.83448939,105360.0,105350.0,0.40519198]
[1749876688058,0.83448939,105360.0,105350.0,0.405192]
[1749876688266,0.83448939,105360.0,105350.0,0.40506477]
[1749876688483,0.84398011,105360.0,105350.0,0.40506477]
[1749876688853,0.83448939,105360.0,105350.0,0.40506477]
[1749876689674,0.82499876,105360.0,105350.0,0.40506476]
[1749876689882,0.82499876,105360.0,105350.0,0.40506475]
[1749876690303,0.82499876,105360.0,105350.0,0.39839214]
[1749876690724,0.82499876,105360.0,105350.0,0.40506475]
[1749876690959,0.81550822,105360.0,105350.0,0.39839214]
[1749876691171,0.82499867,105360.0,105350.0,0.3805985]
[1749876691380,0.82499867,105360.0,105350.0,0.40506475]
[1749876691579,0.83448921,105360.0,105350.0,0.38727111]
[1749876691829,0.83448921,105360.0,105350.0,0.40506477]
[1749876692016,0.82499867,105360.0,105350.0,0.40506477]
[1749876692262,0.82499867,105360.0,105350.0,0.40506486]
[1749876692463,0.82499867,105360.0,105350.0,0.38727141]
[1749876692585,0.82499867,105360.0,105350.0,0.3805985]
[1749876692792,0.82499867,105360.0,105350.0,0.40506556]
[1749876692991,0.8344893,105360.0,105350.0,0.40506556]
[1749876693881,0.84398002,105360.0,105350.0,0.40506556]
[1749876694071,0.83448921,105360.0,105350.0,0.55838556]
[1749876694257,0.83448921,105360.0,105350.0,0.55838572]
[1749876694675,0.84397984,105360.0,105350.0,0.54059141]
[1749876694894,0.84397984,105360.0,105350.0,0.55838584]
[1749876695114,0.85347065,105360.0,105350.0,0.55838584]
[1749876695334,0.85347065,105360.0,105350.0,0.54059143]
[1749876695734,0.85347065,105360.0,105350.0,0.55838589]
[1749876696383,0.85347065,105360.0,105350.0,0.53391851]
[1749876696593,0.85347056,105360.0,105350.0,0.55838589]
[1749876696846,0.85347056,105360.0,105350.0,0.54059142]
[1749876697056,0.85347056,105360.0,105350.0,0.55838585]
[1749876697291,0.85347056,105360.0,105350.0,0.55650585]
[1749876697511,0.85347056,105360.0,105350.0,0.53871142]
[1749876697951,0.85347056,105360.0,105350.0,0.55650592]
[1749876698193,0.84397984,105360.0,105350.0,0.55650592]
[1749876698629,0.85347065,105360.0,105350.0,0.55650592]
[1749876699259,0.85347065,105360.0,105350.0,0.53203851]
[1749876699485,0.85347065,105360.0,105350.0,0.55650587]
[1749876699695,0.85347065,105360.0,105350.0,0.5565059]
[1749876699910,0.85347065,105360.0,105350.0,0.55650378]
[1749876700239,0.85347065,105360.0,105350.0,0.54983299]
[1749876700454,0.85347065,105360.0,105350.0,0.55650378]
[1749876700886,0.85347065,105360.0,105350.0,0.55649808]
[1749876701100,0.85347065,105360.0,105350.0,0.5387093]
[1749876701276,0.85347065,105360.0,105350.0,0.55649808]
[1749876701514,0.85347065,105360.0,105350.0,0.53203851]
[1749876701719,0.85347065,105360.0,105350.0,0.55649809]
[1749876702466,0.85347065,105360.0,105350.0,0.54982728]
[1749876702757,0.85347065,105360.0,105350.0,0.55649806]
[1749876702955,0.85347065,105360.0,105350.0,0.54982728]
[1749876703186,0.85347065,105360.0,105350.0,0.55649806]
[1749876703408,0.85347065,105360.0,105350.0,0.53203852]
[1749876703634,0.86296155,105360.0,105350.0,0.54982728]
[1749876704043,0.86296155,105360.0,105350.0,0.55649806]
[1749876704249,0.86296155,105360.0,105350.0,0.5387093]
[1749876704487,0.84397984,105360.0,105350.0,0.55649805]
[1749876704703,0.84397984,105360.0,105350.0,0.54982724]
[1749876704918,0.81550822,105360.0,105350.0,0.55649801]
[1749876705145,0.81550822,105360.0,105350.0,0.53870927]
[1749876705358,0.86990765,105360.0,105350.0,0.55649792]
[1749876705560,0.8793981,105360.0,105350.0,0.55649792]
[1749876705783,0.8793981,105360.0,105350.0,0.55649793]
[1749876706400,0.8793981,105360.0,105350.0,0.55649798]
[1749876706608,0.8793981,105360.0,105350.0,0.54982724]
[1749876706813,0.8793981,105360.0,105350.0,0.55649801]
[1749876707051,0.8793981,105360.0,105350.0,0.55649799]
[1749876707273,0.8793981,105360.0,105350.0,0.55649795]
[1749876707504,0.8793981,105360.0,105350.0,0.53870927]
[1749876707730,0.8793981,105360.0,105350.0,0.55649795]